bitfinex/quotes_ETHUSD_20250814
["timestamp","ask_amount","ask_price","bid_price","bid_amount"]
[1755186184435,0.108,4618.4,4617.8,0.9295]
[1755186184599,0.108,4618.4,4617.8,3.09501592]
[1755186184911,0.108,4618.4,4617.7,0.108]
[1755186185099,3.827,4619.2,4617.1,0.9295]
[1755186185100,3.826,4618.5,4617.1,0.9295]
[1755186185293,0.108,4617.9,4617.8,2.16552859]
[1755186185498,0.108,4617.9,4617.2,0.108]
[1755186185911,0.55,4617.8,4617.5,2.16562817]
[1755186186341,0.55,4617.8,4617.3,2.16575304]
[1755186186541,30.0,4617.3,4615.7,0.9295]
[1755186186740,0.108,4616.4,4616.3,2.16623702]
[1755186186951,0.658,4616.4,4616.3,2.16623702]
[1755186187156,0.108,4616.4,4616.3,2.16623702]
[1755186187328,0.5991109,4618.5,4616.3,2.16623702]
[1755186187329,0.658,4616.9,4616.8,2.16600242]
[1755186187525,0.658,4616.9,4616.8,3.09550242]
[1755186187713,4.0333109,4618.5,4616.8,3.09550242]
[1755186187714,0.108,4617.8,4617.7,2.16556318]
[1755186187915,0.108,4617.8,4617.7,2.61406318]
[1755186188152,0.108,4617.8,4617.7,0.9295]
[1755186188472,0.64972,4619.6,4617.8,2.16553337]
[1755186188651,0.002,4620.3,4617.9,0.9295]
[1755186188815,3.824,4619.5,4618.9,2.16498531]
[1755186189154,0.55,4619.3,4618.3,0.4485]
[1755186189358,0.3824,4619.4,4618.3,0.4485]
[1755186189955,3.823,4619.3,4619.2,2.16484536]
[1755186190117,3.823,4619.3,4618.4,0.481]
[1755186190313,3.823,4619.3,4618.4,2.16525203]
[1755186190706,0.55,4619.1,4617.8,2.16553337]
[1755186190836,0.55,4618.9,4617.8,2.16553337]
[1755186191040,0.55,4618.9,4616.8,0.5261588]
[1755186191041,2.16497077,4619.0,4617.1,0.9295]
[1755186191245,0.55,4618.1,4618.0,0.001]
[1755186191480,4.373,4618.1,4618.0,0.001]
[1755186191685,0.4342,4619.1,4618.0,0.001]
[1755186191686,0.002,4619.4,4618.0,0.9305]
[1755186191854,0.002,4619.4,4618.1,0.9295]
[1755186192758,0.002,4619.4,4618.1,0.4485]
[1755186192952,0.002,4619.4,4618.6,2.16514692]
[1755186193156,3.823,4619.4,4619.1,2.1649143]
[1755186193364,0.002,4619.4,4619.3,2.16483016]
[1755186193584,0.002,4619.4,4618.4,0.02165252]
[1755186193585,0.002,4619.4,4618.4,0.4485]
[1755186193747,0.002,4619.4,4618.4,0.4493]
[1755186193946,0.002,4619.4,4619.2,2.1648762]
[1755186194257,0.002,4619.4,4618.8,2.165018]
[1755186194457,0.002,4619.4,4618.4,0.4493]
[1755186194458,0.552,4619.4,4618.4,0.0008]
[1755186194865,0.552,4619.4,4618.5,2.16515833]
[1755186195060,0.552,4619.4,4618.4,0.0008]
[1755186195251,0.552,4619.4,4618.7,2.16510805]
[1755186195463,0.55,4619.2,4618.4,0.0008]
[1755186195782,2.71498058,4619.0,4618.4,0.0008]
[1755186195986,0.55,4618.8,4618.5,2.1652007]
[1755186196351,0.55,4618.8,4618.1,2.16538323]
[1755186196570,0.55,4618.8,4618.1,2.16539269]
[1755186196774,0.55,4618.4,4618.0,0.001]
[1755186197280,2.71539269,4618.1,4618.0,0.001]
[1755186197454,6.53439269,4618.1,4618.0,0.001]
[1755186197651,4.369,4618.1,4618.0,0.001]
[1755186197908,4.77099244,4618.1,4618.0,0.001]
[1755186198101,7.37058513,4618.1,4618.0,0.001]
[1755186198302,7.86588513,4618.1,4618.0,0.001]
[1755186198454,7.97388513,4618.1,4618.0,0.001]
[1755186198848,7.47858513,4618.1,4618.0,0.001]
[1755186200582,7.04438513,4618.1,4618.0,0.001]
[1755186201718,7.04438513,4618.1,4616.5,0.5565]
[1755186201719,0.55,4618.0,4616.5,0.108]
[1755186201869,0.55,4618.0,4616.7,0.4434]
[1755186202288,2.71544351,4618.0,4616.8,2.16600242]
[1755186202495,0.55,4617.8,4617.1,2.16585899]
[1755186202769,0.55,4617.6,4617.5,2.16567406]
[1755186202987,3.816,4618.1,4617.5,0.8972]
[1755186203299,3.816,4618.1,4618.0,2.16543958]
[1755186203607,0.0012,4619.4,4618.0,0.8972]
[1755186203820,0.0012,4619.4,4617.8,2.16552705]
[1755186203821,0.1092,4619.4,4619.2,2.16487657]
[1755186204124,0.1092,4619.4,4619.3,0.4434]
[1755186204440,0.0012,4619.4,4619.3,3.06203016]
[1755186204704,0.0012,4619.4,4619.2,0.0008]
[1755186204910,0.108,4619.3,4619.2,0.0008]
[1755186205089,1.05042,4619.3,4619.2,0.0008]
[1755186205725,0.55,4619.2,4618.0,0.8972]
[1755186205881,0.55,4619.2,4618.8,2.16505335]
[1755186206081,0.39242,4619.3,4618.9,2.16501625]
[1755186206282,0.5512,4619.4,4619.3,2.16483016]
[1755186206283,0.1092,4619.4,4619.3,2.16483016]
[1755186206500,0.1092,4619.4,4619.0,0.8972]
[1755186206702,0.0012,4619.4,4618.4,0.4434]
[1755186206904,0.55,4618.8,4618.7,2.16506642]
[1755186207407,0.55,4619.3,4619.2,2.1648414]
[1755186208073,0.55,4619.3,4618.7,3.06226845]
[1755186208285,0.658,4619.1,4619.0,2.16492699]
[1755186208482,0.55,4619.0,4618.9,2.16501656]
[1755186208981,0.108,4619.1,4617.4,0.4434]
[1755186208982,30.55,4618.9,4617.4,0.4434]
[1755186209296,0.55,4618.1,4617.4,0.108]
[1755186209628,0.55,4617.7,4617.1,0.108]
[1755186210074,0.55,4617.7,4617.2,2.16581477]
[1755186210274,0.55,4617.7,4616.9,0.4434]
[1755186210275,0.55,4617.9,4616.9,0.4434]
[1755186210498,2.16637292,4620.3,4617.7,2.16558026]
[1755186210499,0.55,4617.8,4617.7,2.16558026]
[1755186210719,0.55,4618.7,4617.9,2.16548647]
[1755186211013,0.55,4618.7,4618.1,0.108]
[1755186211399,2.71497077,4619.0,4618.2,2.16534342]
[1755186211603,2.71497077,4619.0,4617.7,0.8972]
[1755186211604,0.658,4618.4,4618.3,2.16525512]
[1755186212024,0.0012,4619.4,4618.3,0.8972]
[1755186212230,0.0012,4619.4,4618.4,0.8972]
[1755186212539,0.0012,4619.4,4618.5,0.8972]
[1755186212682,0.0012,4619.4,4617.9,0.4434]
[1755186212683,0.55,4618.4,4617.9,0.4434]
[1755186212888,0.55,4618.1,4618.0,2.60883958]
[1755186213123,0.55,4618.1,4617.4,2.27369426]
[1755186213124,0.55,4618.1,4617.5,2.16567406]
[1755186213299,0.28233031,4618.0,4617.9,2.16548647]
[1755186213500,0.55,4618.0,4617.9,2.16548647]
[1755186213735,0.55,4617.9,4616.8,0.001]
[1755186213944,2.16553337,4617.8,4616.8,0.001]
[1755186214104,0.55,4616.9,4616.8,0.001]
[1755186214289,37.45385551,4616.9,4616.8,0.0018]
[1755186214492,37.56185551,4616.9,4616.8,0.0018]
[1755186214890,4.468,4616.9,4616.8,0.0018]
[1755186215124,4.467,4616.9,4616.8,0.0018]
[1755186215625,4.57607729,4616.9,4616.8,0.0018]
[1755186215932,4.467,4616.9,4616.8,0.0018]
[1755186216094,7.07965551,4616.9,4616.8,0.0018]
[1755186216293,38.00755551,4616.9,4616.8,0.0018]
[1755186216494,34.19855551,4616.9,4616.8,0.0018]
[1755186216732,4.9137,4616.9,4616.8,0.0018]
[1755186217027,7.07965551,4616.9,4616.8,0.0018]
[1755186217327,3.27065551,4616.9,4616.8,0.0018]
[1755186217622,38.00655551,4616.9,4616.8,0.0018]
[1755186218023,7.53875551,4616.9,4616.8,0.0018]
[1755186218236,4.9127,4616.9,4616.8,0.0018]
[1755186218529,3.808,4617.2,4616.8,0.4452]
[1755186218692,3.808,4617.4,4617.2,2.16580229]
[1755186219126,3.808,4617.4,4616.8,0.0018]
[1755186219328,3.808,4617.4,4617.3,2.16576787]
[1755186219748,5.194,4618.3,4617.6,2.16559146]
[1755186219904,0.5194,4618.2,4617.5,2.16567265]
[1755186220225,0.5194,4618.2,4617.3,0.8972]
[1755186220226,3.807,4618.1,4617.7,2.16556808]
[1755186220416,3.807,4618.4,4617.8,0.8972]
[1755186220811,2.1650182,4618.9,4617.8,0.8972]
[1755186220812,0.0012,4619.4,4617.8,0.8972]
[1755186221014,33.807,4619.2,4617.8,0.8972]
[1755186221221,3.807,4619.1,4618.0,2.16540252]
[1755186221424,0.002,4619.3,4617.8,0.4538]
[1755186221636,3.807,4619.2,4618.2,2.1653458]
[1755186221821,0.55,4619.1,4618.3,2.16529891]
[1755186222028,0.55,4619.1,4619.0,2.16497077]
[1755186222241,3.807,4619.2,4619.1,2.1649239]
[1755186222418,3.806,4619.2,4619.0,2.16493212]
[1755186222621,0.55,4619.1,4618.8,2.1650249]
[1755186223017,0.55,4619.1,4618.7,2.16507426]
[1755186223323,0.55,4619.1,4618.8,0.4434]
[1755186223522,0.55,4619.1,4619.0,2.16497077]
[1755186223939,3.806,4619.2,4619.1,2.1649239]
[1755186223940,0.55,4619.2,4619.1,2.1649239]
[1755186224143,0.002,4619.3,4619.2,2.16487703]
[1755186224506,0.002,4619.3,4619.2,3.06287703]
[1755186225143,3.0,4619.1,4617.0,0.4538]
[1755186225331,0.55,4618.8,4617.0,0.4538]
[1755186225504,0.55,4618.8,4617.4,0.8972]
[1755186225709,0.002,4619.3,4617.5,0.4434]
[1755186226006,0.55,4619.1,4617.5,0.8972]
[1755186226235,0.55,4618.7,4617.9,2.1654863]
[1755186226435,0.55,4618.7,4617.5,0.8972]
[1755186226635,0.55,4618.5,4617.7,2.1655723]
[1755186226837,2.71520918,4618.5,4617.7,2.1655723]
[1755186227141,2.71534353,4618.3,4617.5,0.8972]
[1755186227308,0.55,4618.1,4617.5,0.4538]
[1755186227711,0.55,4617.9,4617.5,0.4538]
[1755186228259,3.0,4619.7,4617.6,0.8972]
[1755186228546,0.55,4617.8,4617.3,2.16676268]
[1755186228708,0.55,4617.8,4617.3,2.62056268]
[1755186229108,0.55,4617.8,4617.3,0.001]
[1755186229308,0.55,4617.8,4617.3,0.4548]
[1755186230344,0.658,4617.4,4617.3,0.001]
[1755186230516,2.82292096,4617.4,4617.3,0.001]
[1755186231674,33.18302096,4617.4,4617.3,0.001]
[1755186232247,6.62492096,4617.4,4617.3,0.001]
[1755186232431,36.62572096,4617.4,4617.3,0.001]
[1755186232631,37.73808725,4617.4,4617.3,0.001]
[1755186232887,37.73808725,4617.4,4616.8,0.001]
[1755186232888,5.57236629,4617.4,4616.8,0.001]
[1755186233173,5.71595551,4616.9,4616.8,0.00080001]
[1755186233327,39.51795551,4616.9,4616.8,0.00080001]
[1755186233523,36.09625551,4616.9,4616.8,0.00080001]
[1755186233776,39.89825551,4616.9,4616.8,0.00080001]
[1755186233979,36.89725551,4616.9,4616.8,0.00080001]
[1755186234129,6.89725551,4616.9,4616.8,0.00080001]
[1755186234879,36.89725551,4616.9,4616.8,0.00080001]
[1755186235966,6.89725551,4616.9,4616.8,0.00080001]
[1755186237466,2.16562177,4617.7,4616.8,0.43320001]
[1755186237627,5.96566425,4617.6,4616.8,3.09219558]
[1755186237826,3.8,4617.5,4616.8,0.00080001]
[1755186238144,0.55,4617.1,4616.8,0.00080001]
[1755186238345,3.8,4617.1,4616.8,0.00080001]
[1755186238546,0.55,4617.0,4616.8,0.00080001]
[1755186239270,0.55,4616.9,4616.8,0.00080001]
[1755186240267,2.71595551,4616.9,4616.8,0.00080001]
[1755186240571,3.58403969,4616.9,4616.8,0.00080001]
[1755186240872,36.94413969,4616.9,4616.8,0.00080001]
[1755186242679,40.38203969,4616.9,4616.8,0.00080001]
[1755186243171,10.49003969,4616.9,4616.8,0.00080001]
[1755186243556,39.93903969,4616.9,4616.8,0.00080001]
[1755186243736,40.48903969,4616.9,4616.8,0.00080001]
[1755186244167,40.84913969,4616.9,4616.8,0.00080001]
[1755186245691,40.48903969,4616.9,4616.8,0.00080001]
[1755186246368,40.48803969,4616.9,4616.8,0.00080001]
[1755186246672,10.48803969,4616.9,4616.8,0.00080001]
[1755186246870,7.48803969,4616.9,4616.8,0.00080001]
[1755186247244,37.48803969,4616.9,4616.8,0.00080001]
[1755186247768,0.97608418,4616.9,4616.8,0.00080001]
[1755186248069,3.904,4616.9,4616.8,0.92620001]
[1755186248437,0.108,4616.9,4616.8,0.92620001]
[1755186249168,0.108,4616.9,4616.8,3.09220243]
[1755186249953,0.658,4616.9,4616.8,0.49380001]
[1755186250258,1.1033,4616.9,4616.8,0.49380001]
[1755186250479,0.658,4616.9,4616.8,0.00080001]
[1755186251268,0.658,4616.9,4616.8,3.09220243]
[1755186251587,3.794,4617.9,4616.9,2.16595551]
[1755186251751,3.794,4617.9,4617.6,2.16558231]
[1755186251954,0.55,4617.8,4617.7,0.9254]
[1755186252276,0.55,4617.8,4617.2,0.4324]
[1755186252478,0.55,4617.8,4617.4,2.16567908]
[1755186252809,0.55,4617.8,4617.5,2.16566535]
[1755186253098,0.002,4618.3,4618.2,2.1653458]
[1755186253324,0.0012,4618.3,4618.2,3.0907458]
[1755186253711,0.0012,4618.3,4616.7,2.16604934]
[1755186253860,0.0012,4618.3,4616.8,0.59590493]
[1755186254054,0.0012,4618.3,4617.3,2.16574404]
[1755186254392,0.0012,4618.3,4616.8,0.59590493]
[1755186254708,0.0012,4618.3,4618.1,2.16535276]
[1755186255185,0.0012,4618.3,4618.0,2.16543824]
[1755186255357,0.0012,4618.3,4617.8,2.16549401]
[1755186255717,0.0012,4618.3,4617.5,2.16565092]
[1755186255718,0.55,4618.0,4617.5,2.16566198]
[1755186255857,0.55,4617.8,4617.4,2.16571411]
[1755186256765,0.55,4617.8,4617.6,2.16562122]
[1755186257292,0.55,4618.2,4617.7,3.09098026]
[1755186257497,0.55,4618.2,4617.9,2.16547757]
[1755186257657,0.55,4618.2,4618.0,2.16542924]
[1755186258002,0.55,4618.2,4617.9,0.493]
[1755186258205,0.55,4618.2,4618.0,2.16541974]
[1755186258413,0.55,4618.2,4618.1,2.16539269]
[1755186258714,0.55,4618.2,4618.1,3.09079269]
[1755186258913,0.0012,4618.3,4618.2,2.1653458]
[1755186259071,0.0012,4618.3,4618.2,3.0907458]
[1755186259668,0.0012,4618.3,4618.2,0.9254]
[1755186259868,0.0012,4618.3,4618.2,3.0907458]
[1755186261023,0.0012,4618.3,4617.6,0.493]
[1755186261222,0.0012,4618.3,4618.2,2.1653458]
[1755186261524,0.0012,4618.3,4618.2,3.0828458]
[1755186261889,0.0012,4618.3,4618.2,3.71567334]
[1755186262085,0.0012,4618.3,4618.2,7.50267334]
[1755186262319,0.0012,4618.3,4618.2,6.9778458]
[1755186262796,0.0012,4618.3,4618.2,3.1908458]
[1755186263424,0.0012,4618.3,4618.2,3.0828458]
[1755186263587,0.0012,4618.3,4618.2,2.6419458]
[1755186263782,0.0012,4618.3,4617.8,0.108]
[1755186263989,0.0012,4618.3,4618.1,2.16538875]
[1755186264322,0.658,4618.2,4618.1,2.16538875]
[1755186264521,0.55,4618.1,4617.5,0.108]
[1755186264823,0.108,4618.2,4617.5,0.108]
[1755186264993,0.108,4618.2,4618.0,2.1654017]
[1755186265317,0.55,4618.1,4618.0,2.16543958]
[1755186265525,0.55,4618.1,4618.0,3.08293958]
[1755186265887,0.55,4618.1,4618.0,2.16543958]
[1755186266093,0.55,4618.1,4617.9,2.16547841]
[1755186266297,0.0012,4618.3,4617.0,2.16586352]
[1755186266636,0.55,4617.5,4616.8,0.001]
[1755186266837,0.55,4617.3,4616.8,0.001]
[1755186267003,2.71595551,4616.9,4616.8,0.001]
[1755186267637,3.14575551,4616.9,4616.8,0.001]
[1755186268471,3.62145551,4616.9,4616.8,0.001]
[1755186268645,33.62145551,4616.9,4616.8,0.001]
[1755186268827,36.92875551,4616.9,4616.8,0.001]
[1755186269021,41.4637218,4616.9,4616.8,0.001]
[1755186269356,37.6807218,4616.9,4616.8,0.001]
[1755186269656,10.5582218,4616.9,4616.8,0.001]
[1755186269855,40.5582218,4616.9,4616.8,0.001]
[1755186270261,1.60926629,4616.9,4616.8,0.001]
[1755186270556,6.49895551,4616.9,4616.8,0.001]
[1755186270761,40.40445551,4616.9,4616.8,0.001]
[1755186271566,40.51352864,4616.9,4616.8,0.001]
[1755186271861,2.71637781,4616.0,4615.9,0.001]
[1755186272184,10.51187781,4616.0,4615.9,0.001]
[1755186272341,10.51087781,4616.0,4615.9,0.001]
[1755186272540,40.03517781,4616.0,4615.9,0.001]
[1755186272849,6.60537781,4616.0,4615.9,0.001]
[1755186273162,36.60537781,4616.0,4615.9,0.001]
[1755186273325,37.03517781,4616.0,4615.9,0.001]
[1755186273742,37.51087781,4616.0,4615.9,0.001]
[1755186274167,40.51087781,4616.0,4615.9,0.001]
[1755186275238,35.82437781,4616.0,4615.9,0.001]
[1755186275477,39.60537781,4616.0,4615.9,0.001]
[1755186276202,35.82437781,4616.0,4615.9,0.001]
[1755186276364,9.05437781,4616.0,4615.9,0.001]
[1755186276560,39.05437781,4616.0,4615.9,0.001]
[1755186276755,39.60437781,4616.0,4615.9,0.001]
[1755186276962,35.82437781,4616.0,4615.9,0.001]
[1755186277161,39.60437781,4616.0,4615.9,0.001]
[1755186277893,40.50987781,4616.0,4615.9,0.001]
[1755186278095,40.91756528,4616.0,4615.9,0.001]
[1755186278405,40.91756528,4616.0,4614.8,0.001]
[1755186278406,5.71745778,4613.7,4612.0,0.001]
[1755186278600,45.44324525,4613.7,4612.0,0.001]
[1755186278798,45.91894525,4613.7,4612.0,0.001]
[1755186279001,45.44324525,4613.7,4612.0,0.001]
[1755186279195,45.53000025,4613.7,4612.0,0.001]
[1755186279896,2.71764571,4613.3,4612.0,0.001]
[1755186280059,40.40114571,4613.3,4613.2,1e-08]
[1755186280259,40.72213318,4613.3,4613.2,1e-08]
[1755186280701,40.72213318,4613.3,4612.0,0.001]
[1755186280702,2.7182097,4612.1,4612.0,0.001]
[1755186280886,6.4962097,4612.1,4612.0,0.001]
[1755186281111,2.7182097,4612.1,4612.0,0.001]
[1755186281424,6.4962097,4612.1,4612.0,0.001]
[1755186281729,40.72269717,4612.1,4612.0,1e-08]
[1755186281927,41.58913173,4612.1,4612.0,1e-08]
[1755186282149,33.90563173,4612.1,4612.0,1e-08]
[1755186282422,40.36264426,4612.1,4612.0,1e-08]
[1755186283127,40.79244426,4612.1,4612.0,1e-08]
[1755186283304,36.58464426,4612.1,4612.0,0.00080001]
[1755186283500,9.4952097,4612.1,4612.0,0.00080001]
[1755186284128,39.4952097,4612.1,4612.0,0.00080001]
[1755186285139,39.66034917,4612.1,4612.0,0.00080001]
[1755186285346,40.09014917,4612.1,4612.0,0.00080001]
[1755186285628,41.21672617,4612.1,4612.0,0.00080001]
[1755186285793,40.74102617,4612.1,4612.0,0.00080001]
[1755186285995,40.74102617,4612.1,4611.0,0.001]
[1755186285996,2.71867992,4611.1,4611.0,0.001]
[1755186286303,45.12447992,4611.1,4611.0,0.001]
[1755186287195,0.55,4609.6,4609.5,0.4766]
[1755186287396,0.55,4609.6,4608.6,0.4409]
[1755186287397,0.55,4609.5,4608.6,0.4409]
[1755186287711,0.55,4609.0,4608.9,0.4766]
[1755186287912,4.327,4609.0,4608.9,0.4766]
[1755186288092,4.327,4609.0,4608.9,0.9175]
[1755186288298,0.6588,4609.0,4608.9,0.9175]
[1755186288798,5.2,4611.4,4608.9,0.9175]
[1755186289148,0.759871,4609.6,4609.0,0.4766]
[1755186289345,34.296,4611.3,4609.0,0.4766]
[1755186289346,0.4298,4610.6,4609.0,0.4766]
[1755186289644,0.6588,4609.1,4608.8,0.4766]
[1755186289807,0.55,4609.1,4609.0,2.16966804]
[1755186289991,4.327,4609.1,4609.0,0.4766]
[1755186290195,0.6588,4609.1,4609.0,3.08716804]
[1755186290728,1e-08,4609.1,4609.0,3.61285987]
[1755186291038,1e-08,4609.1,4609.0,3.72165987]
[1755186291231,1e-08,4609.1,4609.0,6.72165987]
[1755186291836,1e-08,4609.1,4609.0,6.28075987]
[1755186292007,1e-08,4609.1,4609.0,6.72395987]
[1755186298512,1e-08,4609.1,4609.0,3.19826804]
[1755186299036,1e-08,4609.1,4609.0,2.27846804]
[1755186299246,1e-08,4609.1,4609.0,0.1088]
[1755186299430,1e-08,4609.1,4609.0,2.16966804]
[1755186299938,1e-08,4609.1,4608.5,0.001]
[1755186300155,1e-08,4609.1,4608.9,2.16971511]
[1755186300156,0.55,4609.0,4608.9,2.16971511]
[1755186300358,0.55,4609.0,4608.5,0.001]
[1755186300359,0.55,4609.0,4608.5,0.4671]
[1755186300522,0.55,4609.0,4608.5,0.001]
[1755186300523,2.71985635,4608.6,4608.5,0.001]
[1755186300707,36.62235635,4608.6,4608.5,0.001]
[1755186301030,0.55,4607.7,4607.6,0.001]
[1755186301201,7.39478018,4607.7,4607.6,0.001]
[1755186301537,0.55,4607.7,4607.6,0.001]
[1755186301740,4.321,4607.7,4607.6,0.001]
[1755186301926,0.55,4607.7,4607.6,0.001]
[1755186302104,6.49228018,4607.7,4607.6,0.001]
[1755186302307,8.26102879,4607.7,4607.6,0.001]
[1755186302513,11.26102879,4607.7,4607.6,0.001]
[1755186303143,41.26102879,4607.7,4607.6,0.001]
[1755186303320,41.26102879,4607.7,4607.6,1e-08]
[1755186303516,41.45584868,4607.7,4607.6,1e-08]
[1755186303717,41.45484868,4607.7,4607.6,1e-08]
[1755186303921,41.26002879,4607.7,4607.6,1e-08]
[1755186304131,37.48902879,4607.7,4607.6,1e-08]
[1755186304337,41.26002879,4607.7,4607.6,1e-08]
[1755186304554,2.17042149,4607.4,4607.3,1e-08]
[1755186304722,2.17042149,4607.4,4605.2,1.0]
[1755186304723,5.7214112,4605.3,4605.2,1.0]
[1755186304909,45.5999112,4605.3,4605.2,1.0]
[1755186305245,41.3604112,4605.3,4605.2,0.507]
[1755186305542,45.29740434,4605.3,4605.2,0.507]
[1755186305717,46.16365295,4605.3,4605.2,1e-08]
[1755186305920,0.55,4604.8,4602.7,2.17262791]
[1755186306145,0.55,4604.8,4602.1,0.4661]
[1755186306146,0.55,4604.5,4602.1,0.4661]
[1755186306466,30.434,4604.7,4600.8,0.10944033]
[1755186306467,0.55,4604.2,4602.2,0.9093]
[1755186306678,0.55,4604.0,4602.2,0.4432]
[1755186306894,0.434,4604.6,4603.5,2.17224066]
[1755186306895,0.55,4603.8,4603.5,2.17224066]
[1755186307177,0.55,4604.5,4603.6,0.4661]
[1755186307384,0.434,4604.6,4603.6,0.4661]
[1755186307385,0.55,4603.7,4603.6,0.4661]
[1755186307532,4.321,4603.7,4603.6,2.63831229]
[1755186307733,0.55,4603.6,4600.7,2.17354752]
[1755186307961,0.55,4603.6,4601.9,2.17301549]
[1755186308167,0.55,4603.6,4600.9,0.69439879]
[1755186308168,3.77,4604.5,4604.4,2.17183563]
[1755186308343,5.641,4606.3,4604.4,0.9093]
[1755186308669,0.11334491,4607.4,4604.5,0.93101788]
[1755186308869,0.74164296,4609.2,4604.9,3.0]
[1755186308870,0.16361495,4608.4,4604.9,3.0]
[1755186309083,5.32029378,4610.1,4606.6,20.73083308]
[1755186309257,3.771,4610.0,4606.7,7.70200751]
[1755186309565,3.771,4610.0,4607.0,2.17060994]
[1755186309786,0.1088,4609.2,4608.6,0.1088]
[1755186309970,3.771,4609.1,4608.0,0.4661]
[1755186310272,3.771,4609.0,4608.0,0.4661]
[1755186310444,30.0,4608.9,4608.0,2.17012593]
[1755186310628,2.17009489,4608.1,4606.5,0.4661]
[1755186310972,4.01753691,4608.8,4606.5,0.4661]
[1755186310973,0.55,4607.7,4606.5,0.4661]
[1755186311201,0.55,4607.7,4607.6,2.17032728]
[1755186311376,3.77,4608.7,4608.6,2.16982656]
[1755186311558,3.77,4610.1,4608.7,2.16980927]
[1755186311753,3.77,4610.1,4609.8,2.16925649]
[1755186311949,5.206,4611.0,4609.9,0.4661]
[1755186312185,0.1088,4610.1,4609.9,0.4661]
[1755186312384,3.77,4610.0,4609.3,0.1088]
[1755186312585,0.1088,4609.4,4608.9,2.16969733]
[1755186312773,2.16987712,4608.6,4607.7,0.4661]
[1755186313085,4.204,4609.3,4607.1,0.4432]
[1755186313086,2.71995472,4608.4,4607.2,2.17051571]
[1755186313259,2.71995472,4608.4,4607.1,0.1088]
[1755186313260,0.55,4608.2,4607.7,0.0008]
[1755186313449,0.55,4608.2,4606.7,0.1088]
[1755186313450,3.77,4608.1,4606.7,0.1088]
[1755186313645,0.55,4608.0,4607.7,0.4661]
[1755186313970,0.55,4607.5,4607.4,2.17042149]
[1755186314172,0.5492,4607.5,4607.2,2.17048667]
[1755186314395,3.77,4608.1,4606.8,2.17068629]
[1755186314683,3.77,4608.1,4606.6,0.4661]
[1755186314684,0.1088,4607.0,4606.6,0.4661]
[1755186314886,0.1088,4606.7,4606.2,0.001]
[1755186315090,3.1088,4608.3,4606.2,0.001]
[1755186315091,0.1088,4606.3,4606.2,0.001]
[1755186315950,0.1088,4606.3,4606.2,0.4671]
[1755186316150,3.8778,4606.3,4606.2,0.4671]
[1755186316405,4.4278,4606.3,4606.2,0.4671]
[1755186316899,7.47551979,4606.3,4606.2,0.001]
[1755186317332,1.0928,4606.3,4606.2,0.001]
[1755186317507,4.4278,4606.3,4606.2,0.001]
[1755186317651,0.6588,4606.3,4606.2,0.001]
[1755186317856,4.4278,4606.3,4606.2,0.4671]
[1755186318658,0.6588,4606.3,4606.2,0.4671]
[1755186319084,4.4268,4606.3,4606.2,0.4671]
[1755186319496,7.04041979,4606.3,4606.2,0.001]
[1755186319792,37.36561979,4606.3,4606.2,0.001]
[1755186319968,40.36561979,4606.3,4606.2,0.001]
[1755186320689,5.72098693,4606.2,4606.1,1e-08]
[1755186320874,36.26378693,4606.2,4603.9,0.4661]
[1755186321052,0.55,4604.6,4603.9,0.4661]
[1755186321257,0.55,4604.4,4603.9,0.4661]
[1755186321465,0.434,4605.3,4604.1,0.1]
[1755186321665,0.55,4605.1,4604.2,2.64872997]
[1755186322068,0.55,4604.9,4604.2,0.4768]
[1755186322270,4.317,4604.9,4604.2,0.4768]
[1755186322466,4.317,4604.9,4604.3,0.1]
[1755186322667,2.72183563,4604.4,4604.3,0.1]
[1755186322853,33.18313563,4604.4,4604.3,0.1]
[1755186323292,0.55,4604.4,4604.3,0.1]
[1755186323457,4.318,4604.4,4604.3,0.1008]
[1755186323794,0.55,4604.4,4604.3,0.0008]
[1755186323956,34.7793,4604.4,4604.3,0.0008]
[1755186324157,6.95113563,4604.4,4604.3,0.0008]
[1755186324357,4.318,4604.4,4604.3,0.0008]
[1755186324554,0.1088,4606.3,4603.6,0.4768]
[1755186324757,0.55,4605.1,4603.7,0.4768]
[1755186324978,0.55,4604.9,4604.1,2.17196023]
[1755186325213,0.55,4604.7,4603.7,0.4768]
[1755186325528,0.55,4604.5,4604.4,2.17183563]
[1755186325733,3.767,4604.8,4604.7,2.17169413]
[1755186326039,0.55,4604.9,4604.8,2.17164444]
[1755186326217,0.55,4606.0,4605.2,2.17145464]
[1755186326397,3.767,4605.9,4604.8,0.4768]
[1755186326581,3.767,4605.9,4605.4,2.17136397]
[1755186326780,3.767,4605.9,4605.3,2.17140173]
[1755186327211,3.767,4605.9,4605.2,2.17145223]
[1755186327530,3.767,4605.9,4605.3,0.1]
[1755186327738,2.72117547,4605.8,4605.3,0.1]
[1755186327879,4.36080386,4605.9,4605.3,0.1]
[1755186327880,2.72128431,4605.6,4605.3,0.1]
[1755186328241,2.72136405,4605.4,4605.3,0.1]
[1755186328375,37.08152648,4605.4,4605.3,0.1]
[1755186328580,2.7217413,4604.6,4604.5,0.1]
[1755186328781,36.9500413,4604.6,4604.5,0.1]
[1755186329226,36.4887413,4604.6,4604.5,0.1]
[1755186329533,6.5975413,4604.6,4604.5,0.1]
[1755186329823,2.72178846,4604.5,4604.4,0.2]
[1755186330025,4.4248,4604.5,4604.4,0.2]
[1755186330829,0.6588,4604.5,4604.4,0.2]